[Event "Titled Tuesday Blitz July 27 2021"]
[White "Perez Ponsa, Federico"]
[Black "Ezat, Mohamed"]
[WhiteFideId "117927"]
[BlackFideId "10600906"]
[WhiteElo "2672"]
[BlackElo "2414"]
[Result "1-0"]
[Round "02"]
[TimeControl "180+1"]
[Date "2021.07.27"]
[WhiteClock "0:00:43"]
[BlackClock "0:00:02"]

1. d4 {[%clk 0:03:00]}  Nf6 {[%clk 0:02:58]} 2. c4 {[%clk 0:03:00]}  g6 {[%clk 0:02:59]} 3. Nf3 {[%clk 0:02:56]}  Bg7 {[%clk 0:03:00]} 4. g3 {[%clk 0:02:56]}  O-O {[%clk 0:02:59]} 5. Bg2 {[%clk 0:02:57]}  d6 {[%clk 0:02:59]} 6. O-O {[%clk 0:02:57]}  Nc6 {[%clk 0:02:59]} 7. Nc3 {[%clk 0:02:56]}  Bg4 {[%clk 0:02:59]} 8. Be3 {[%clk 0:02:52]}  Bxf3 {[%clk 0:02:50]} 9. exf3 {[%clk 0:02:52]}  Nd7 {[%clk 0:02:49]} 10. f4 {[%clk 0:02:52]}  e5 {[%clk 0:02:42]} 11. fxe5 {[%clk 0:02:31]}  dxe5 {[%clk 0:02:39]} 12. dxe5 {[%clk 0:02:29]}  Ndxe5 {[%clk 0:02:36]} 13. Qb3 {[%clk 0:02:29]}  Na5 {[%clk 0:02:27]} 14. Qb5 {[%clk 0:02:20]}  c6 {[%clk 0:02:13]} 15. Qc5 {[%clk 0:02:20]}  Naxc4 {[%clk 0:01:55]} 16. Rad1 {[%clk 0:02:18]}  Qb6 {[%clk 0:01:47]} 17. Qxb6 {[%clk 0:02:15]}  axb6 {[%clk 0:01:45]} 18. Bc1 {[%clk 0:02:16]}  Rfd8 {[%clk 0:01:35]} 19. b3 {[%clk 0:02:14]}  Nd6 {[%clk 0:01:28]} 20. Be3 {[%clk 0:01:58]}  Ng4 {[%clk 0:01:02]} 21. Bd2 {[%clk 0:01:45]}  Nf5 {[%clk 0:00:54]} 22. h3 {[%clk 0:01:41]}  Ne5 {[%clk 0:00:46]} 23. Bg5 {[%clk 0:01:30]}  Rd3 {[%clk 0:00:42]} 24. Na4 {[%clk 0:01:25]}  b5 {[%clk 0:00:38]} 25. Nc5 {[%clk 0:01:25]}  Rxd1 {[%clk 0:00:38]} 26. Rxd1 {[%clk 0:01:26]}  h6 {[%clk 0:00:38]} 27. Bf4 {[%clk 0:01:24]}  Rxa2 {[%clk 0:00:31]} 28. Nxb7 {[%clk 0:01:22]}  g5 {[%clk 0:00:30]} 29. Rd8+ {[%clk 0:01:08]}  Kh7 {[%clk 0:00:30]} 30. Be4 {[%clk 0:01:08]}  Kg6 {[%clk 0:00:28]} 31. Bxe5 {[%clk 0:01:05]}  Bxe5 {[%clk 0:00:28]} 32. g4 {[%clk 0:01:06]}  Rb2 {[%clk 0:00:24]} 33. Bxf5+ {[%clk 0:01:02]}  Kg7 {[%clk 0:00:23]} 34. Rd3 {[%clk 0:01:02]}  Bc7 {[%clk 0:00:19]} 35. Nc5 {[%clk 0:00:57]}  Bb6 {[%clk 0:00:19]} 36. Ne4 {[%clk 0:00:58]}  c5 {[%clk 0:00:18]} 37. Rd6 {[%clk 0:00:57]}  Bc7 {[%clk 0:00:17]} 38. Rd7 {[%clk 0:00:57]}  Be5 {[%clk 0:00:16]} 39. Nxc5 {[%clk 0:00:56]}  b4 {[%clk 0:00:13]} 40. Be6 {[%clk 0:00:53]}  Kh8 {[%clk 0:00:11]} 41. Rxf7 {[%clk 0:00:51]}  Bd4 {[%clk 0:00:10]} 42. Ne4 {[%clk 0:00:51]}  Re2 {[%clk 0:00:05]} 43. Bd5 {[%clk 0:00:50]}  Re1+ {[%clk 0:00:02]} 44. Kg2 {[%clk 0:00:51]}  Rd1 {[%clk 0:00:02]} 45. Bc4 {[%clk 0:00:47]}  Re1 {[%clk 0:00:01]} 46. Nf6 {[%clk 0:00:47]}  Bxf6 {[%clk 0:00:01]} 47. Rxf6 {[%clk 0:00:48]}  h5 {[%clk 0:00:02]} 48. Rh6+ {[%clk 0:00:47]}  Kg7 {[%clk 0:00:03]} 49. Rxh5 {[%clk 0:00:48]}  Kf6 {[%clk 0:00:03]} 50. h4 {[%clk 0:00:48]}  Ke5 {[%clk 0:00:04]} 51. Rxg5+ {[%clk 0:00:48]}  Kf4 {[%clk 0:00:05]} 52. Rg8 {[%clk 0:00:48]}  Re5 {[%clk 0:00:03]} 53. h5 {[%clk 0:00:44]}  Re2 {[%clk 0:00:02]} 54. Bxe2 {[%clk 0:00:43]} 1-0


[Site "https://www.chess.com"]

[Event "Titled Tuesday Blitz July 27 2021"]
[White "Sanal, Vahap"]
[Black "Golubev, Mikhail"]
[WhiteFideId "6300545"]
[BlackFideId "14100983"]
[WhiteElo "2495"]
[BlackElo "2374"]
[Result "1-0"]
[Round "02"]
[TimeControl "180+1"]
[Date "2021.07.27"]
[WhiteClock "0:01:59"]
[BlackClock "0:00:13"]

1. Nf3 {[%clk 0:03:00]}  d6 {[%clk 0:02:59]} 2. e4 {[%clk 0:02:57]}  c5 {[%clk 0:02:58]} 3. d4 {[%clk 0:02:57]}  cxd4 {[%clk 0:02:57]} 4. Nxd4 {[%clk 0:02:57]}  Nf6 {[%clk 0:02:57]} 5. Nc3 {[%clk 0:02:57]}  g6 {[%clk 0:02:57]} 6. Be3 {[%clk 0:02:55]}  Bg7 {[%clk 0:02:58]} 7. f3 {[%clk 0:02:56]}  Nc6 {[%clk 0:02:58]} 8. Qd2 {[%clk 0:02:56]}  O-O {[%clk 0:02:58]} 9. O-O-O {[%clk 0:02:56]}  d5 {[%clk 0:02:57]} 10. Kb1 {[%clk 0:02:56]}  Nxd4 {[%clk 0:02:54]} 11. e5 {[%clk 0:02:56]}  Nf5 {[%clk 0:02:51]} 12. exf6 {[%clk 0:02:56]}  exf6 {[%clk 0:02:48]} 13. Nxd5 {[%clk 0:02:52]}  Nxe3 {[%clk 0:02:45]} 14. Qxe3 {[%clk 0:02:52]}  Be6 {[%clk 0:02:45]} 15. Bc4 {[%clk 0:02:52]}  f5 {[%clk 0:02:42]} 16. Bb3 {[%clk 0:02:50]}  Bxd5 {[%clk 0:02:03]} 17. Rxd5 {[%clk 0:02:48]}  Qf6 {[%clk 0:02:02]} 18. c3 {[%clk 0:02:48]}  Rfe8 {[%clk 0:01:59]} 19. Qd3 {[%clk 0:02:48]}  Re7 {[%clk 0:01:49]} 20. Rd1 {[%clk 0:02:48]}  Rae8 {[%clk 0:01:38]} 21. a3 {[%clk 0:02:43]}  h5 {[%clk 0:01:37]} 22. Ka2 {[%clk 0:02:42]}  b6 {[%clk 0:01:31]} 23. Rd2 {[%clk 0:02:42]}  Re5 {[%clk 0:00:58]} 24. Rd6 {[%clk 0:02:37]}  Qg5 {[%clk 0:00:34]} 25. Qc4 {[%clk 0:02:08]}  R5e6 {[%clk 0:00:26]} 26. Rxe6 {[%clk 0:02:05]}  fxe6 {[%clk 0:00:23]} 27. Qc6 {[%clk 0:02:01]}  Qe7 {[%clk 0:00:14]} 28. Rd7 {[%clk 0:01:59]}  Qc5 {[%clk 0:00:13]} 29. Rxg7+ {[%clk 0:01:59]} 1-0


[Site "https://www.chess.com"]

[Event "Titled Tuesday Blitz July 27 2021"]
[White "Sanchez Alvares, Kelvin Antonio"]
[Black "Le, Tuan Minh"]
[WhiteFideId "3906680"]
[BlackFideId "12401153"]
[WhiteElo "2247"]
[BlackElo "2450"]
[Result "0-1"]
[Round "02"]
[TimeControl "180+1"]
[Date "2021.07.27"]
[WhiteClock "0:00:03"]
[BlackClock "0:00:03"]

1. d4 {[%clk 0:03:00]}  d5 {[%clk 0:03:00]} 2. c4 {[%clk 0:03:00]}  c6 {[%clk 0:02:59]} 3. Nf3 {[%clk 0:03:00]}  Nf6 {[%clk 0:02:59]} 4. Nc3 {[%clk 0:02:59]}  a6 {[%clk 0:02:59]} 5. cxd5 {[%clk 0:02:58]}  cxd5 {[%clk 0:03:00]} 6. Bf4 {[%clk 0:02:58]}  Nc6 {[%clk 0:03:00]} 7. e3 {[%clk 0:02:57]}  Bg4 {[%clk 0:03:01]} 8. Be2 {[%clk 0:02:53]}  Bxf3 {[%clk 0:03:00]} 9. Bxf3 {[%clk 0:02:52]}  e6 {[%clk 0:03:01]} 10. O-O {[%clk 0:02:52]}  Bd6 {[%clk 0:03:01]} 11. Bg5 {[%clk 0:02:49]}  h6 {[%clk 0:03:00]} 12. Bh4 {[%clk 0:02:49]}  O-O {[%clk 0:03:00]} 13. Rc1 {[%clk 0:02:46]}  Rc8 {[%clk 0:03:00]} 14. Qb3 {[%clk 0:02:46]}  Na5 {[%clk 0:02:58]} 15. Qa4 {[%clk 0:02:41]}  Nc4 {[%clk 0:02:54]} 16. Qc2 {[%clk 0:02:29]}  Be7 {[%clk 0:02:38]} 17. Qe2 {[%clk 0:02:18]}  Ne8 {[%clk 0:02:35]} 18. Bxe7 {[%clk 0:02:09]}  Qxe7 {[%clk 0:02:35]} 19. Bxd5 {[%clk 0:02:09]}  Ncd6 {[%clk 0:02:02]} 20. Bf3 {[%clk 0:02:06]}  Nf6 {[%clk 0:02:02]} 21. e4 {[%clk 0:02:05]}  e5 {[%clk 0:02:03]} 22. dxe5 {[%clk 0:02:04]}  Qxe5 {[%clk 0:02:04]} 23. Nd5 {[%clk 0:01:52]}  Nxd5 {[%clk 0:01:43]} 24. exd5 {[%clk 0:01:50]}  Qf4 {[%clk 0:01:44]} 25. Qe3 {[%clk 0:01:45]}  Qf6 {[%clk 0:01:42]} 26. Qd2 {[%clk 0:01:43]}  Rfd8 {[%clk 0:01:38]} 27. b3 {[%clk 0:01:42]}  Nf5 {[%clk 0:01:30]} 28. Rc4 {[%clk 0:01:35]}  b5 {[%clk 0:01:12]} 29. Rxc8 {[%clk 0:01:33]}  Rxc8 {[%clk 0:01:13]} 30. Rd1 {[%clk 0:01:24]}  Nd6 {[%clk 0:01:09]} 31. Qd4 {[%clk 0:01:19]}  Qxd4 {[%clk 0:00:58]} 32. Rxd4 {[%clk 0:01:18]}  Rc2 {[%clk 0:00:59]} 33. a4 {[%clk 0:01:17]}  b4 {[%clk 0:00:54]} 34. h3 {[%clk 0:01:16]}  a5 {[%clk 0:00:54]} 35. Bd1 {[%clk 0:01:06]}  Rc3 {[%clk 0:00:51]} 36. Kf1 {[%clk 0:01:06]}  Kf8 {[%clk 0:00:51]} 37. Ke2 {[%clk 0:01:06]}  g6 {[%clk 0:00:51]} 38. Rd3 {[%clk 0:01:06]}  Rc7 {[%clk 0:00:47]} 39. Kd2 {[%clk 0:01:05]}  Ne4+ {[%clk 0:00:47]} 40. Ke3 {[%clk 0:01:04]}  Nd6 {[%clk 0:00:48]} 41. g4 {[%clk 0:00:59]}  Ke7 {[%clk 0:00:46]} 42. Kd4 {[%clk 0:00:59]}  Kf6 {[%clk 0:00:45]} 43. Rf3+ {[%clk 0:00:57]}  Kg5 {[%clk 0:00:44]} 44. h4+ {[%clk 0:00:52]}  Kxh4 {[%clk 0:00:43]} 45. Rf6 {[%clk 0:00:52]}  Ne8 {[%clk 0:00:30]} 46. Ra6 {[%clk 0:00:52]}  Rc1 {[%clk 0:00:26]} 47. Be2 {[%clk 0:00:51]}  Re1 {[%clk 0:00:26]} 48. Ke3 {[%clk 0:00:48]}  Nc7 {[%clk 0:00:25]} 49. Rxa5 {[%clk 0:00:46]}  Rb1 {[%clk 0:00:18]} 50. Bc4 {[%clk 0:00:45]}  Re1+ {[%clk 0:00:15]} 51. Kd2 {[%clk 0:00:43]}  Re8 {[%clk 0:00:14]} 52. Rc5 {[%clk 0:00:40]}  Na8 {[%clk 0:00:07]} 53. Bb5 {[%clk 0:00:37]}  Rd8 {[%clk 0:00:07]} 54. Bc6 {[%clk 0:00:37]}  Nb6 {[%clk 0:00:08]} 55. a5 {[%clk 0:00:35]}  Nc8 {[%clk 0:00:07]} 56. a6 {[%clk 0:00:32]}  Kxg4 {[%clk 0:00:06]} 57. Ke3 {[%clk 0:00:27]}  h5 {[%clk 0:00:06]} 58. Bd7+ {[%clk 0:00:24]}  Rxd7 {[%clk 0:00:06]} 59. Rxc8 {[%clk 0:00:23]}  h4 {[%clk 0:00:07]} 60. d6 {[%clk 0:00:17]}  Kf5 {[%clk 0:00:07]} 61. Rc6 {[%clk 0:00:14]}  g5 {[%clk 0:00:05]} 62. Kf3 {[%clk 0:00:14]}  g4+ {[%clk 0:00:06]} 63. Kg2 {[%clk 0:00:15]}  Kf4 {[%clk 0:00:06]} 64. Rb6 {[%clk 0:00:15]}  h3+ {[%clk 0:00:05]} 65. Kh2 {[%clk 0:00:15]}  Kf3 {[%clk 0:00:06]} 66. Rxb4 {[%clk 0:00:13]}  f5 {[%clk 0:00:07]} 67. Ra4 {[%clk 0:00:12]}  f4 {[%clk 0:00:06]} 68. a7 {[%clk 0:00:11]}  g3+ {[%clk 0:00:06]} 69. fxg3 {[%clk 0:00:12]}  fxg3+ {[%clk 0:00:07]} 70. Kxh3 {[%clk 0:00:09]}  Rh7+ {[%clk 0:00:04]} 71. Rh4 {[%clk 0:00:08]}  Rxa7 {[%clk 0:00:05]} 72. Rh8 {[%clk 0:00:07]}  Rf7 {[%clk 0:00:04]} 73. Rg8 {[%clk 0:00:03]}  Rh7# {[%clk 0:00:03]} 0-1


[Site "https://www.chess.com"]

[Event "Titled Tuesday Blitz July 27 2021"]
[White "Spata, German"]
[Black "Zhigalko, Sergei"]
[WhiteFideId "113026"]
[BlackFideId "13502956"]
[WhiteElo "2238"]
[BlackElo "2662"]
[Result "0-1"]
[Round "02"]
[TimeControl "180+1"]
[Date "2021.07.27"]
[WhiteClock "0:00:03"]
[BlackClock "0:00:02"]

1. d4 {[%clk 0:02:58]}  Nf6 {[%clk 0:02:59]} 2. Nc3 {[%clk 0:02:54]}  d5 {[%clk 0:02:59]} 3. Bf4 {[%clk 0:02:53]}  a6 {[%clk 0:02:59]} 4. e3 {[%clk 0:02:52]}  e6 {[%clk 0:02:58]} 5. Nf3 {[%clk 0:02:49]}  b5 {[%clk 0:02:53]} 6. Ne5 {[%clk 0:02:45]}  Bb7 {[%clk 0:02:52]} 7. Bd3 {[%clk 0:02:44]}  c5 {[%clk 0:02:52]} 8. Qf3 {[%clk 0:02:31]}  c4 {[%clk 0:02:42]} 9. Be2 {[%clk 0:02:28]}  Nc6 {[%clk 0:02:42]} 10. g4 {[%clk 0:02:22]}  Bb4 {[%clk 0:02:36]} 11. Nxf7 {[%clk 0:02:15]}  Kxf7 {[%clk 0:02:31]} 12. g5 {[%clk 0:02:15]}  Qa5 {[%clk 0:02:06]} 13. gxf6 {[%clk 0:02:08]}  Bxc3+ {[%clk 0:01:42]} 14. Kf1 {[%clk 0:02:07]}  g6 {[%clk 0:01:39]} 15. bxc3 {[%clk 0:01:57]}  Qxc3 {[%clk 0:01:39]} 16. Kg2 {[%clk 0:01:27]}  Qxc2 {[%clk 0:01:37]} 17. Qg4 {[%clk 0:01:00]}  Qf5 {[%clk 0:01:34]} 18. Qh4 {[%clk 0:01:00]}  g5 {[%clk 0:01:08]} 19. Qh6 {[%clk 0:00:41]}  Ke8 {[%clk 0:00:09]} 20. Qg7 {[%clk 0:00:18]}  gxf4 {[%clk 0:00:06]} 21. Qxh8+ {[%clk 0:00:18]}  Kd7 {[%clk 0:00:04]} 22. Qg7+ {[%clk 0:00:11]}  Kd6 {[%clk 0:00:05]} 23. Bg4 {[%clk 0:00:10]}  Qe4+ {[%clk 0:00:05]} 24. f3 {[%clk 0:00:09]}  Qc2+ {[%clk 0:00:05]} 25. Kh3 {[%clk 0:00:08]}  fxe3 {[%clk 0:00:04]} 26. f7 {[%clk 0:00:07]}  Qg6 {[%clk 0:00:01]} 27. f8=Q+ {[%clk 0:00:07]}  Rxf8 {[%clk 0:00:02]} 28. Qxf8+ {[%clk 0:00:08]}  Kc7 {[%clk 0:00:02]} 29. Qf4+ {[%clk 0:00:07]}  Kb6 {[%clk 0:00:02]} 30. Qxe3 {[%clk 0:00:06]}  h5 {[%clk 0:00:03]} 31. Qxe6 {[%clk 0:00:03]}  hxg4+ {[%clk 0:00:02]} 32. Qxg4 {[%clk 0:00:03]}  Qh7+ {[%clk 0:00:02]} 33. Kg3 {[%clk 0:00:03]}  Qd3 {[%clk 0:00:02]} 0-1


[Site "https://www.chess.com"]

[Event "Titled Tuesday Blitz July 27 2021"]
[White "Tologon tegin, Semetei"]
[Black "Moskalenko, Alexander"]
[WhiteFideId "13800574"]
[BlackFideId "4155351"]
[WhiteElo "2224"]
[BlackElo "2495"]
[Result "0-1"]
[Round "02"]
[TimeControl "180+1"]
[Date "2021.07.27"]
[WhiteClock "0:00:05"]
[BlackClock "0:00:56"]

1. e4 {[%clk 0:03:00]}  e6 {[%clk 0:02:52]} 2. d3 {[%clk 0:02:59]}  d5 {[%clk 0:02:52]} 3. Nd2 {[%clk 0:02:59]}  Nf6 {[%clk 0:02:51]} 4. Ngf3 {[%clk 0:02:59]}  Nc6 {[%clk 0:02:50]} 5. g3 {[%clk 0:02:57]}  Bc5 {[%clk 0:02:41]} 6. Bg2 {[%clk 0:02:56]}  dxe4 {[%clk 0:02:39]} 7. dxe4 {[%clk 0:02:54]}  b6 {[%clk 0:02:38]} 8. O-O {[%clk 0:02:38]}  Ba6 {[%clk 0:02:34]} 9. c4 {[%clk 0:02:37]}  e5 {[%clk 0:02:31]} 10. Qa4 {[%clk 0:02:34]}  Bb7 {[%clk 0:02:25]} 11. Nxe5 {[%clk 0:02:31]}  Qd6 {[%clk 0:02:26]} 12. Nxc6 {[%clk 0:02:06]}  Bxc6 {[%clk 0:02:27]} 13. e5 {[%clk 0:02:00]}  Bxa4 {[%clk 0:02:26]} 14. exd6 {[%clk 0:02:00]}  O-O-O {[%clk 0:02:26]} 15. b3 {[%clk 0:01:47]}  Bd7 {[%clk 0:02:15]} 16. dxc7 {[%clk 0:01:46]}  Kxc7 {[%clk 0:02:16]} 17. Ne4 {[%clk 0:01:45]}  Nxe4 {[%clk 0:02:08]} 18. Bxe4 {[%clk 0:01:46]}  Rhe8 {[%clk 0:02:03]} 19. Bf4+ {[%clk 0:01:45]}  Bd6 {[%clk 0:02:01]} 20. Bxd6+ {[%clk 0:01:43]}  Kxd6 {[%clk 0:02:01]} 21. Rad1+ {[%clk 0:01:40]}  Kc5 {[%clk 0:02:02]} 22. Rd5+ {[%clk 0:01:35]}  Kb4 {[%clk 0:02:02]} 23. Rfd1 {[%clk 0:01:03]}  Rxe4 {[%clk 0:01:49]} 24. Rxd7 {[%clk 0:01:03]}  Re1+ {[%clk 0:01:50]} 25. Rxe1 {[%clk 0:01:02]}  Rxd7 {[%clk 0:01:50]} 26. Re2 {[%clk 0:00:55]}  a5 {[%clk 0:01:51]} 27. f4 {[%clk 0:00:51]}  a4 {[%clk 0:01:51]} 28. bxa4 {[%clk 0:00:48]}  Kxc4 {[%clk 0:01:51]} 29. Rb2 {[%clk 0:00:48]}  Kc5 {[%clk 0:01:50]} 30. a5 {[%clk 0:00:38]}  bxa5 {[%clk 0:01:49]} 31. a4 {[%clk 0:00:38]}  Kc6 {[%clk 0:01:48]} 32. Rb5 {[%clk 0:00:37]}  Rd5 {[%clk 0:01:48]} 33. Rb8 {[%clk 0:00:27]}  Rd4 {[%clk 0:01:48]} 34. Rf8 {[%clk 0:00:22]}  f6 {[%clk 0:01:48]} 35. Rf7 {[%clk 0:00:21]}  Rxa4 {[%clk 0:01:48]} 36. Rxg7 {[%clk 0:00:22]}  Ra1+ {[%clk 0:01:48]} 37. Kg2 {[%clk 0:00:21]}  a4 {[%clk 0:01:48]} 38. Rxh7 {[%clk 0:00:21]}  Kb6 {[%clk 0:01:49]} 39. Rh6 {[%clk 0:00:21]}  a3 {[%clk 0:01:49]} 40. Rxf6+ {[%clk 0:00:22]}  Kb7 {[%clk 0:01:50]} 41. Re6 {[%clk 0:00:19]}  a2 {[%clk 0:01:49]} 42. Re2 {[%clk 0:00:19]}  Rg1+ {[%clk 0:01:48]} 43. Kxg1 {[%clk 0:00:20]}  a1=Q+ {[%clk 0:01:49]} 44. Kg2 {[%clk 0:00:20]}  Qd1 {[%clk 0:01:49]} 45. Re5 {[%clk 0:00:20]}  Kc6 {[%clk 0:01:48]} 46. h4 {[%clk 0:00:19]}  Qg4 {[%clk 0:01:44]} 47. h5 {[%clk 0:00:19]}  Kd6 {[%clk 0:01:43]} 48. h6 {[%clk 0:00:18]}  Qg6 {[%clk 0:01:43]} 49. f5 {[%clk 0:00:12]}  Qh5 {[%clk 0:01:34]} 50. Re6+ {[%clk 0:00:10]}  Kd5 {[%clk 0:01:34]} 51. Rg6 {[%clk 0:00:09]}  Qxf5 {[%clk 0:01:28]} 52. h7 {[%clk 0:00:10]}  Qe4+ {[%clk 0:01:17]} 53. Kf2 {[%clk 0:00:10]}  Qd4+ {[%clk 0:01:14]} 54. Kg2 {[%clk 0:00:10]}  Qd2+ {[%clk 0:01:11]} 55. Kf3 {[%clk 0:00:09]}  Qd3+ {[%clk 0:01:10]} 56. Kf2 {[%clk 0:00:09]}  Qc2+ {[%clk 0:01:06]} 57. Kf3 {[%clk 0:00:09]}  Qh2 {[%clk 0:01:07]} 58. Rg7 {[%clk 0:00:08]}  Ke6 {[%clk 0:01:07]} 59. Kg4 {[%clk 0:00:08]}  Kf6 {[%clk 0:01:06]} 60. Ra7 {[%clk 0:00:08]}  Kg6 {[%clk 0:01:06]} 61. Kf3 {[%clk 0:00:05]}  Qb2 {[%clk 0:01:00]} 62. Kg4 {[%clk 0:00:05]}  Qe2+ {[%clk 0:00:55]} 63. Kf4 {[%clk 0:00:04]}  Qf2+ {[%clk 0:00:55]} 64. Kg4 {[%clk 0:00:05]}  Qf5+ {[%clk 0:00:55]} 65. Kh4 {[%clk 0:00:05]}  Qh5# {[%clk 0:00:56]} 0-1


[Site "https://www.chess.com"]

[Event "Titled Tuesday Blitz July 27 2021"]
[White "Ahmadzada, Ahmad"]
[Black "Gelman, Alexander"]
[WhiteFideId "13413007"]
[BlackFideId "4118316"]
[WhiteElo "2226"]
[BlackElo "2375"]
[Result "1-0"]
[Round "03"]
[TimeControl "180+1"]
[Date "2021.07.27"]
[WhiteClock "0:00:05"]
[BlackClock "0:00:30"]

1. Nf3 {[%clk 0:03:00]}  Nf6 {[%clk 0:02:59]} 2. g3 {[%clk 0:03:00]}  c5 {[%clk 0:02:58]} 3. Bg2 {[%clk 0:03:00]}  e6 {[%clk 0:02:59]} 4. O-O {[%clk 0:03:01]}  Be7 {[%clk 0:02:59]} 5. c4 {[%clk 0:02:59]}  d6 {[%clk 0:02:59]} 6. Nc3 {[%clk 0:02:59]}  a6 {[%clk 0:02:59]} 7. d4 {[%clk 0:02:59]}  cxd4 {[%clk 0:02:59]} 8. Nxd4 {[%clk 0:03:00]}  O-O {[%clk 0:03:00]} 9. b3 {[%clk 0:02:58]}  Qc7 {[%clk 0:03:00]} 10. Bb2 {[%clk 0:02:58]}  Nbd7 {[%clk 0:03:01]} 11. e4 {[%clk 0:02:57]}  Ne5 {[%clk 0:03:02]} 12. Qe2 {[%clk 0:02:54]}  Bd7 {[%clk 0:03:02]} 13. Rad1 {[%clk 0:02:53]}  Rac8 {[%clk 0:03:02]} 14. f4 {[%clk 0:02:50]}  Ng6 {[%clk 0:03:02]} 15. f5 {[%clk 0:02:45]}  Ne5 {[%clk 0:03:02]} 16. fxe6 {[%clk 0:02:45]}  fxe6 {[%clk 0:03:02]} 17. Bh3 {[%clk 0:02:45]}  Qb6 {[%clk 0:02:40]} 18. Kh1 {[%clk 0:02:38]}  Kf7 {[%clk 0:02:20]} 19. Qh5+ {[%clk 0:01:52]}  Kg8 {[%clk 0:02:17]} 20. Qe2 {[%clk 0:01:18]}  Kf7 {[%clk 0:02:17]} 21. Rf2 {[%clk 0:01:01]}  Rce8 {[%clk 0:02:06]} 22. Bc1 {[%clk 0:00:45]}  Bd8 {[%clk 0:02:02]} 23. Be3 {[%clk 0:00:44]}  Qa5 {[%clk 0:02:00]} 24. Bd2 {[%clk 0:00:37]}  Qb6 {[%clk 0:02:00]} 25. Be3 {[%clk 0:00:25]}  Qa5 {[%clk 0:02:00]} 26. Bd2 {[%clk 0:00:25]}  Qc7 {[%clk 0:02:00]} 27. Rdf1 {[%clk 0:00:23]}  Kg8 {[%clk 0:02:00]} 28. g4 {[%clk 0:00:21]}  h6 {[%clk 0:01:39]} 29. g5 {[%clk 0:00:21]}  hxg5 {[%clk 0:01:39]} 30. Bxg5 {[%clk 0:00:22]}  Qa5 {[%clk 0:01:28]} 31. Qd2 {[%clk 0:00:21]}  b5 {[%clk 0:01:07]} 32. cxb5 {[%clk 0:00:19]}  axb5 {[%clk 0:01:07]} 33. Qe3 {[%clk 0:00:09]}  b4 {[%clk 0:00:59]} 34. Nce2 {[%clk 0:00:09]}  Neg4 {[%clk 0:00:50]} 35. Bxg4 {[%clk 0:00:06]}  Nxg4 {[%clk 0:00:50]} 36. Rxf8+ {[%clk 0:00:06]}  Rxf8 {[%clk 0:00:51]} 37. Rxf8+ {[%clk 0:00:07]}  Kxf8 {[%clk 0:00:52]} 38. Bxd8 {[%clk 0:00:05]}  Qxd8 {[%clk 0:00:48]} 39. Qf4+ {[%clk 0:00:05]}  Nf6 {[%clk 0:00:47]} 40. Qxd6+ {[%clk 0:00:06]}  Kf7 {[%clk 0:00:45]} 41. Nxe6 {[%clk 0:00:05]}  Qc8 {[%clk 0:00:42]} 42. Ng5+ {[%clk 0:00:05]}  Kg6 {[%clk 0:00:42]} 43. Qg3 {[%clk 0:00:04]}  Qc2 {[%clk 0:00:35]} 44. Nf4+ {[%clk 0:00:04]}  Kh6 {[%clk 0:00:30]} 45. Qh4+ {[%clk 0:00:04]}  Nh5 {[%clk 0:00:30]} 46. Qxh5# {[%clk 0:00:05]} 1-0


[Site "https://www.chess.com"]

[Event "Titled Tuesday Blitz July 27 2021"]
[White "Dowgird, Filip"]
[Black "Muradli, Mahammad"]
[WhiteFideId "1121235"]
[BlackFideId "13409301"]
[WhiteElo "2209"]
[BlackElo "2482"]
[Result "0-1"]
[Round "03"]
[TimeControl "180+1"]
[Date "2021.07.27"]
[WhiteClock "0:00:17"]
[BlackClock "0:00:12"]

1. d4 {[%clk 0:02:57]}  Nf6 {[%clk 0:02:48]} 2. Bf4 {[%clk 0:02:55]}  d6 {[%clk 0:02:48]} 3. e3 {[%clk 0:02:49]}  g6 {[%clk 0:02:46]} 4. Nf3 {[%clk 0:02:47]}  Bg7 {[%clk 0:02:46]} 5. h3 {[%clk 0:02:47]}  O-O {[%clk 0:02:47]} 6. Be2 {[%clk 0:02:48]}  c5 {[%clk 0:02:47]} 7. c3 {[%clk 0:02:48]}  cxd4 {[%clk 0:02:46]} 8. cxd4 {[%clk 0:02:46]}  Nc6 {[%clk 0:02:47]} 9. Nc3 {[%clk 0:02:46]}  Bf5 {[%clk 0:02:41]} 10. O-O {[%clk 0:02:41]}  Rc8 {[%clk 0:02:38]} 11. Qb3 {[%clk 0:02:36]}  Na5 {[%clk 0:02:37]} 12. Qb4 {[%clk 0:02:31]}  Ne4 {[%clk 0:02:34]} 13. Rfc1 {[%clk 0:02:21]}  Nxc3 {[%clk 0:02:26]} 14. bxc3 {[%clk 0:01:58]}  b6 {[%clk 0:02:26]} 15. Nd2 {[%clk 0:01:51]}  Re8 {[%clk 0:02:15]} 16. Nb3 {[%clk 0:01:37]}  Nc6 {[%clk 0:02:05]} 17. Qa3 {[%clk 0:01:31]}  h5 {[%clk 0:01:42]} 18. Bb5 {[%clk 0:01:23]}  Bd7 {[%clk 0:01:39]} 19. Ba6 {[%clk 0:01:16]}  Rc7 {[%clk 0:01:39]} 20. Bg3 {[%clk 0:01:10]}  Bf5 {[%clk 0:01:19]} 21. Qb2 {[%clk 0:01:06]}  e5 {[%clk 0:01:15]} 22. a4 {[%clk 0:01:06]}  h4 {[%clk 0:01:15]} 23. Bh2 {[%clk 0:01:05]}  Qg5 {[%clk 0:01:16]} 24. Kh1 {[%clk 0:01:06]}  Be4 {[%clk 0:01:06]} 25. Bf1 {[%clk 0:01:03]}  Rcc8 {[%clk 0:01:00]} 26. a5 {[%clk 0:01:01]}  bxa5 {[%clk 0:00:49]} 27. Nxa5 {[%clk 0:00:59]}  exd4 {[%clk 0:00:42]} 28. cxd4 {[%clk 0:00:54]}  Nxa5 {[%clk 0:00:40]} 29. f3 {[%clk 0:00:40]}  Ba8 {[%clk 0:00:34]} 30. Bf4 {[%clk 0:00:34]}  Qf5 {[%clk 0:00:33]} 31. Rxc8 {[%clk 0:00:29]}  Rxc8 {[%clk 0:00:34]} 32. Qa2 {[%clk 0:00:28]}  Nc6 {[%clk 0:00:29]} 33. Bxd6 {[%clk 0:00:26]}  Qd7 {[%clk 0:00:20]} 34. Bf4 {[%clk 0:00:24]}  Nxd4 {[%clk 0:00:14]} 35. exd4 {[%clk 0:00:23]}  Qxd4 {[%clk 0:00:14]} 36. Qxa7 {[%clk 0:00:17]}  Qxa1 {[%clk 0:00:12]} 37. Qxa1 {[%clk 0:00:17]}  Bxa1 {[%clk 0:00:12]} 0-1


[Site "https://www.chess.com"]